Cogmind - Beta 11.1 @@@ ROGUE MODE // 2022.04.25 @ 18:54:06 Player: Apotheos1s Result: Core destroyed Performance ------------- Evolutions (0) 0 Regions Visited (4) 800 Robots Destroyed (42) 210 Value Destroyed (610) 610 Prototype IDs (2) 40 Alien Tech Used (0) 0 Bonus (0) 0 TOTAL SCORE: 1660 Bonus ------- None Cogmind --------- Core Integrity 0/250 Matter 230/300 Energy 37/160 System Corruption 0% Temperature Critical (797) Movement Rolling (110) Ox2 Location -9/Mines Parts ------- > --- POWER (1) -------- Light Nuclear Core > --- PROPULSION (2) --- Wheel > --- UTILITY (2) ------ Small Storage Unit Advanced Targeting Computer > --- WEAPON (2) ------- Beamcaster Flak Cannon > --- INVENTORY (8) ---- Light Angular Momentum Engine Compact Wheel Improved Heat Sink Compact Battery (200) Compact Matter Pod (150) Hacking Suite Assault Cannon Peak State ------------ > --- POWER ------------ Deuterium Engine > --- PROPULSION ------- Wheel Compact Wheel > --- UTILITY ---------- Small Storage Unit Advanced Targeting Computer > --- WEAPON ----------- Beamcaster Flak Cannon > --- INVENTORY -------- Improved Ion Engine Compact Wheel Improved Heat Sink Compact Battery Compact Matter Pod Hacking Suite Improved Medium Laser Assault Cannon [Rating: 19] Favorites ----------- Power Deuterium Engine Engine Deuterium Engine Power Core Light Nuclear Core Propulsion Wheel Wheel Wheel Utility Small Storage Unit Storage Small Storage Unit Processor Advanced Targeting Computer Weapon Flak Cannon Energy Gun Improved Medium Laser Ballistic Gun Assault Rifle Ballistic Cannon Flak Cannon Build | -11 -10 -10 -10 -9 ------- Run | Scr Mat Min Exi Min Slots Evolved . | . . . . . Power . | . . . . . Propulsion . | . . . . . Utility . | . . . . . Weapon . | . . . . . Parts Attached 22 | 6 9 6 . 1 Power 6 | 1 2 2 . 1 Engine 5 | 1 2 2 . . Core 1 | . . . . 1 Reactor . | . . . . . Propulsion 7 | 2 4 1 . . Treads . | . . . . . Leg . | . . . . . Wheel 7 | 2 4 1 . . Hover . | . . . . . Flight . | . . . . . Utility 3 | 1 1 1 . . Device . | . . . . . Storage 1 | 1 . . . . Processor 2 | . 1 1 . . Hackware . | . . . . . Protection . | . . . . . Artifact . | . . . . . Weapon 6 | 2 2 2 . . Energy Gun 4 | 1 2 1 . . Energy Cannon . | . . . . . Ballistic Gun 1 | 1 . . . . Ballistic Cannon 1 | . . 1 . . Launcher . | . . . . . Special Weapon . | . . . . . Impact Weapon . | . . . . . Slashing Weapon . | . . . . . Piercing Weapon . | . . . . . Special Melee Weapon . | . . . . . Unidentified Prototypes 1 | . 1 . . . Parts Lost 3 | . . 1 . 2 Power 1 | . . . . 1 Propulsion 2 | . . 1 . 1 Utility . | . . . . . Weapon . | . . . . . Highest Loss Streak 2 | . . 1 . 2 To Critical Strikes . | . . . . . Average Slot Usage (%) 98 | . 99 96 100 96 Engine 13 | . 14 14 14 12 Wheel 26 | . 27 24 28 24 Storage 14 | . 14 14 14 14 Processor 13 | . 13 14 14 14 Energy Gun 17 | . 22 15 14 14 Ballistic Gun 2 | . 5 . . . Ballistic Cannon 8 | . . 12 14 14 Naked Turns . | . . . . . Heaviest Build 25 | 14 18 25 25 25 Greatest Support 26 | 20 20 26 26 26 Greatest Overweight (x) 2 | . 1 2 . 2 Average Overweight (x) . | . . . . . Largest Inventory Capacity 8 | 8 8 8 8 8 Average Capacity 7 | 6 8 8 8 8 Most Carried 8 | 5 8 8 8 8 Average Carried 7 | 1 6 7 8 7 Final Capacity 8 | 8 8 8 8 8 Final Carried 8 | 1 8 8 8 7 Class Distribution -------------------- 100% | Mutant Dominant Class ---------------- Mutant | -10/Materials Mutant | -10/Mines Mutant | -10/Exiles Mutant | -9/Mines Resources | -11 -10 -10 -10 -9 ----------- Run | Scr Mat Min Exi Min Matter Collected 842 | 208 264 267 . 103 Remotely . | . . . . . Salvage Created 1190 | . 869 222 . 99 Parts 78 | . 54 23 . 1 Haulers Intercepted 2 | . 2 . . . Recyclers Shooed 2 | . 2 . . . Parts Field Recycled . | . . . . . Retrieved Matter . | . . . . . Parts Self-Destructed . | . . . . . Prevented . | . . . . . Kills | -11 -10 -10 -10 -9 ------- Run | Scr Mat Min Exi Min Combat Hostiles Destroyed 34 | . 12 14 . 8 Guns 27 | . 12 10 . 5 Cannons 7 | . . 4 . 3 Classes Destroyed 10 | . 9 . . 1 Worker 4 | . 4 . . . Builder 1 | . 1 . . . Tunneler 1 | . 1 . . . Hauler 2 | . 2 . . . Recycler 3 | . 3 . . . Operator 2 | . 2 . . . Watcher 2 | . 2 . . . Swarmer 19 | . 9 10 . . Grunt 8 | . 3 4 . 1 Assembled 7 | . . . . 7 Best Kill Streak 5 | . 4 3 . 5 Combat Bots Only 5 | . 3 3 . 5 Max Kills in Single Turn 2 | . 2 2 . 1 Gunslinging 1 | . 1 . . . Exploded . | . . . . . Melee . | . . . . . Uniques/NPCs Destroyed . | . . . . . Combat | -11 -10 -10 -10 -9 -------- Run | Scr Mat Min Exi Min Damage Taken 962 | . 357 299 . 306 Core 280 | . 87 46 . 147 Absorbed by Shields . | . . . . . Regen/Repaired (Parts) 39 | . 39 . . . Core Remaining (%) 100 | 100 . . . . Volleys Fired 103 | . 63 21 . 19 Largest 2 | . 2 2 . 2 Hottest 119 | . 112 119 . 119 Shots Fired 204 | . 126 42 . 36 Gun 171 | . 126 26 . 19 Cannon 33 | . . 16 . 17 Launcher . | . . . . . Special . | . . . . . Kinetic 77 | . 44 16 . 17 Thermal 83 | . 38 26 . 19 Explosive . | . . . . . Electromagnetic 44 | . 44 . . . Robot Hit Streak 13 | . 7 13 . 6 Robot Miss Streak 8 | . 4 5 . 8 Penetration Max . | . . . . . Secondary Targets 3 | . 3 . . . Max Gunslinging Chain 1 | . 1 . . . Shots Hit Robots 119 | . 69 29 . 21 Core Hits 80 | . 31 26 . 23 Critical Kills . | . . . . . Critical Parts Destroyed . | . . . . . Critical Strikes 6 | . 4 2 . . Burn 4 | . 2 2 . . Corrupt 2 | . 2 . . . Melee Attacks . | . . . . . Impact . | . . . . . Slashing . | . . . . . Piercing . | . . . . . Sneak Attacks . | . . . . . Combat Hostiles . | . . . . . Follow-up Attacks . | . . . . . Damage Inflicted 2037 | . 987 588 . 462 Guns 1510 | . 932 391 . 187 Cannons 472 | . . 197 . 275 Explosions 29 | . 29 . . . Melee . | . . . . . Ramming 26 | . 26 . . . Kinetic 798 | . 326 197 . 275 Thermal 926 | . 348 391 . 187 Explosive . | . . . . . Electromagnetic 287 | . 287 . . . Impact . | . . . . . Slashing . | . . . . . Piercing . | . . . . . Highest Corruption . | . . . . . Average Corruption . | . . . . . Corruption Purged . | . . . . . Corruption Blocked . | . . . . . Overload Shots . | . . . . . Overflow Damage . | . . . . . Projectiles . | . . . . . Explosions . | . . . . . Melee . | . . . . . Knockbacks 22 | . 1 12 . 9 Impact 1 | . 1 . . . Kinetic 14 | . . 9 . 5 Secondary 7 | . . 3 . 4 Self-Inflicted Damage 45 | . 45 . . . Shots 1 | . 1 . . . Rammed 2 | . 2 . . . Targets Rammed 2 | . 2 . . . Kicked . | . . . . . Crushed . | . . . . . Highest Temperature 829 | . 343 315 . 829 Average Temperature 169 | . 103 109 . 404 Received Heat Transfer 184 | . 30 54 . 100 Effects 24 | . . 3 . 21 Shutdowns 4 | . . . . 4 Energy Bleed 5 | . . 1 . 4 Interference 3 | . . 2 . 1 Matter Decay 1 | . . . . 1 Short Circuit 1 | . . . . 1 Damage (minor) 5 | . . . . 5 Damage (major) 3 | . . . . 3 Damage (core) 2 | . . . . 2 Siege Activations . | . . . . . Robots Corrupted . | . . . . . Combat Hostiles . | . . . . . Parts Fried . | . . . . . Impact Corruptions . | . . . . . Robots Melted . | . . . . . Combat Hostiles . | . . . . . Parts Melted 4 | . 2 2 . . Heat Transferred 2159 | . 901 925 . 333 Parts Sabotaged . | . . . . . Parts Stolen . | . . . . . Parts Stripped . | . . . . . Power Chain Reactions 1 | . 1 . . . Missiles Intercepted . | . . . . . Alert | -11 -10 -10 -10 -9 ------- Run | Scr Mat Min Exi Min Peak Influence 287 | . 287 234 . 20 Initial 57 | . . 57 . . Average 134 | . 175 106 . 16 Maximum Alert Level 1 | . 1 1 . . Low Security (%) 71 | 100 52 87 . 100 Level 1 28 | . 47 12 . . Level 2 . | . . . . . Level 3 . | . . . . . Level 4 . | . . . . . Level 5 . | . . . . . High Security . | . . . . . Max Security . | . . . . . Squads Dispatched 2 | . 2 . . . Investigation 2 | . 2 . . . Extermination . | . . . . . Reinforcement . | . . . . . Assault . | . . . . . Garrison . | . . . . . Intercept . | . . . . . Searches Triggered . | . . . . . Construction Impeded . | . . . . . Haulers Reinforced . | . . . . . Active Scanning Responses . | . . . . . Cargo Convoy Interrupts . | . . . . . Stealth | -11 -10 -10 -10 -9 --------- Run | Scr Mat Min Exi Min Distress Signals . | . . . . . Communications Jammed . | . . . . . Distress Signals . | . . . . . Times Spotted 42 | . 17 14 . 11 Peak Tracking Total 10 | . 4 3 . 10 Tactical Retreats 1 | . 1 . . . Traps | -11 -10 -10 -10 -9 ------- Run | Scr Mat Min Exi Min Traps Triggered 1 | . . 1 . . Indirectly . | . . . . . Trap Hack Attempts . | . . . . . Triggered . | . . . . . Disarmed . | . . . . . Reprogrammed 3 | . 3 . . . Reused . | . . . . . Traps Extracted . | . . . . . Installed . | . . . . . Triggered 1 | . . 1 . . Machines | -11 -10 -10 -10 -9 ---------- Run | Scr Mat Min Exi Min Machines Disabled 2 | . 2 . . . Max in Single Turn 1 | . 1 . . . Machines Sabotaged . | . . . . . Garrisons Compromised . | . . . . . Overloaded Fab Kills . | . . . . . Hacking | -11 -10 -10 -10 -9 --------- Run | Scr Mat Min Exi Min Machines Accessed 15 | . 10 1 4 . Terminals 7 | . 7 . . . Fabricators . | . . . . . Repair Stations 1 | . 1 . . . Recycling Units 2 | . 2 . . . Scanalyzers . | . . . . . Garrison Access . | . . . . . Total Hacks 32 | . 27 1 4 . Successful 20 | . 15 1 4 . Failed 12 | . 12 . . . Catastrophic 2 | . 2 . . . Database Lockouts . | . . . . . Manual 16 | . 16 . . . Terminals 23 | . 23 . . . Fabricators . | . . . . . Repair Stations 2 | . 2 . . . Recycling Units 2 | . 2 . . . Scanalyzers . | . . . . . Garrison Access . | . . . . . Terminal Hacks 10 | . 5 1 4 . Record 4 | . . . 4 . Prototype ID Bank 1 | . 1 . . . Open Door 1 | . . 1 . . Branch Access Points 1 | . 1 . . . Locate Traps 1 | . 1 . . . Reprogram Traps 1 | . 1 . . . Hauler Manifests 1 | . 1 . . . Fabricator Hacks . | . . . . . Repair Station Hacks 2 | . 2 . . . Scan Component 1 | . 1 . . . Repair 1 | . 1 . . . Recycling Unit Hacks 2 | . 2 . . . Report Inventory 2 | . 2 . . . Scanalyzer . | . . . . . Garrison Access Hacks . | . . . . . Unauthorized Hacks 5 | . 5 . . . Terminals 5 | . 5 . . . Botnet 5 | . 5 . . . Fabricators . | . . . . . Repair Stations . | . . . . . Recycling Units . | . . . . . Scanalyzers . | . . . . . Garrison Access . | . . . . . Data Cores Recovered 2 | . 2 . . . Used . | . . . . . Hacking Detections 7 | . 7 . . . Full Trace Events 3 | . 3 . . . Feedback Events . | . . . . . Feedback Blocked . | . . . . . Robot Schematics Acquired . | . . . . . Robots Built . | . . . . . Authchips . | . . . . . Time . | . . . . . Total Robot Build Rating . | . . . . . Part Schematics Acquired . | . . . . . Parts Built . | . . . . . Authchips . | . . . . . Time . | . . . . . Total Part Build Rating . | . . . . . Parts Repaired 1 | . 1 . . . Time 13 | . 13 . . . Parts Recycled . | . . . . . Recycled Matter . | . . . . . Retrieved Matter . | . . . . . Retrieved Components . | . . . . . Parts Scanalyzed . | . . . . . Part Schematics Acquired . | . . . . . Parts Damaged . | . . . . . Bothacking | -11 -10 -10 -10 -9 ------------ Run | Scr Mat Min Exi Min Used RIF Installer . | . . . . . Robots Hacked . | . . . . . Non-combat . | . . . . . Combat . | . . . . . Robot Hacks Applied . | . . . . . Relay Couplers Released . | . . . . . Fabnet Peak Effective % . | . . . . . Robots Rewired . | . . . . . Allies Hacked . | . . . . . Hacks Repelled . | . . . . . Allies | -11 -10 -10 -10 -9 -------- Run | Scr Mat Min Exi Min Total Allies 3 | . . 3 . . Largest Group 2 | . . 2 2 . Highest-Rated Group 42 | . . 42 42 . Highest-Rated Ally 31 | . . 31 31 . Total Orders . | . . . . . Ally Attacks 3 | . . 3 . . Total Damage 21 | . . 21 . . Kills . | . . . . . Allies Corrupted . | . . . . . Allies Melted . | . . . . . Intel | -11 -10 -10 -10 -9 ------- Run | Scr Mat Min Exi Min Robot Analysis Total . | . . . . . Derelict Logs Recovered 3 | . . 3 . . Drone Launches . | . . . . . Drone Recoveries . | . . . . . Exploration | -11 -10 -10 -10 -9 ------------- Run | Scr Mat Min Exi Min Turns Passed 2562 | 40 932 887 624 79 Spaces Moved 2196 | 36 786 722 626 26 Core 11 | 11 . . . . Treads . | . . . . . Legs . | . . . . . Wheels 2185 | 25 786 722 626 26 Hover . | . . . . . Flight . | . . . . . Fastest Speed 50 | 50 80 80 90 90 Average Speed 87 | 70 80 93 90 91 Slowest Speed 110 | 80 95 110 90 110 Overloaded Moves . | . . . . . Propulsion Burnouts . | . . . . . Robots Hopped . | . . . . . Cave-ins Triggered . | . . . . . Exploration Rate (%) 55 | 5 76 99 93 4 Regions Visited 4 Branch Regions 3 Pre-discovered Areas 1 | . . 1 . . Known Exits Taken 2 | . 1 1 . . Unknown Exits Taken 2 | 1 . . 1 . Scrap Searched 1 | . . 1 . . Spaces Dug . | . . . . . Terrain Destroyed 2 | . 2 . . . Melee . | . . . . . Projectile . | . . . . . AOE 2 | . 2 . . . Terrain Rammed . | . . . . . Walls Destroyed . | . . . . . Machines Disabled . | . . . . . Actions | -11 -10 -10 -10 -9 --------- Run | Scr Mat Min Exi Min Total 2651 | 50 972 896 686 47 Wait 262 | . 72 128 61 1 Move 2192 | 35 785 721 625 26 Hop . | . . . . . Pick Up 44 | 8 25 11 . . Fast Attach . | . . . . . Attach 12 | 6 3 2 . 1 Detach . | . . . . . Swap 10 | . 6 4 . . Drop 26 | 1 16 9 . . Fire 103 | . 63 21 . 19 Melee . | . . . . . Ram 2 | . 2 . . . Kick . | . . . . . Crush . | . . . . . Escape Stasis . | . . . . . Rewire . | . . . . . Trap . | . . . . . Miscellaneous . | . . . . . Route ------- -11/Scrapyard -10/Materials (discovered 3 exits: *Mat x2 / *Min) -10/Mines (discovered 3 exits: *Mat x2 / *Exi) -10/Exiles (discovered 2 exits: [*Min x2]) -9/Mines History --------- Turn | Location | Event 29 | -11/Scrapyard | Discovered new exit (range 14) 41 | -11/Scrapyard | Entered Materials 301 | -10/Materials | Build established: Mutant 334 | -10/Materials | Identified exit to Mines 545 | -10/Materials | Repaired Wheel 572 | -10/Materials | Discovered new exit (range 11) 688 | -10/Materials | Discovered new exit (range 8) 703 | -10/Materials | Identified exit to Materials 973 | -10/Materials | Entered Mines 1010 | -10/Mines | Discovered exit to Materials (range 15) 1046 | -10/Mines | Met a Derelict who couldn't figure out how to use a Trap Extractor 1164 | -10/Mines | Deemed a non-threat by the Exiles lab entrance 1165 | -10/Mines | Discovered new exit (range 5) 1174 | -10/Mines | Identified exit to Exiles 1286 | -10/Mines | Learned location of 1 exit from Materials 1309 | -10/Mines | Learned Materials stockpile data 1356 | -10/Mines | A weapon hastily lodged in a ceiling crevice suddenly fell to the ground 1471 | -10/Mines | Discovered exit to Materials (range 5) 1620 | -10/Mines | Core integrity fell below 50% 1724 | -10/Mines | Received a Mining Laser from a helpful Derelict 1860 | -10/Mines | Entered Exiles 1860 | -10/Exiles | Found Exiles lab abandoned 1860 | -10/Exiles | Accompanied by 2 allies 1880 | -10/Exiles | Discovered new exit (range 14) 2258 | -10/Exiles | Discovered new exit (range 12) 2484 | -10/Exiles | Entered Mines 2485 | -9/Mines | Assembled infested the area 2490 | -9/Mines | Assisted by a Guerilla fighting off Assembled 2550 | -9/Mines | Core integrity fell below 20% 2564 | -9/Mines | Core destroyed Last Messages --------------- 02549_ Com. Wheel destroyed. 02550_ Overheating: Core damaged (-50). 02551_ Power failure, Deuterium Engine shutdown. 02551_ Overheating: Beamcaster damaged (-9). 02553_ Deuterium Engine destroyed. 02554_ Overheating: Energy bleed (-19). 02555_ Destroyed Asb. Hover Unit. 02555_ as-68636 destroyed. 02556_ Overheating: Adv. Targeting Computer damaged (-5). 02556_ Acquired 10 matter. 02556_ as-43909 sneak attacks. 02556_ K-01 Serf system corrupted by crushing effect. 02557_ Overheating: Energy bleed (-18). 02558_ Flak Cannon broken. 02558_ Overheating: Short circuit. 02559_ Power failure, Lgt. Nuclear Core shutdown. 02560_ Overheating: Adv. Targeting Computer damaged (-3). 02561_ Overheating: Broken Flak Cannon damaged (-9). 02563_ Overheating: Wheel damaged (-7). 02564_ Overheating: Core damaged (-37). Map ----- +----------------------------------------------------+ | | | | | | | | | | | | | | | | | | | | | | | | | | | | | | | | | ?????????????????????????????????????? | | ?????????????????????????????????????? | | ?????????????????????????????????????? | | ?????????????????????????##??????????? | | ????????????????????????# ??????????? | | ????????????????????????# #??????????? | | ????????????????????????# #??????????? | | ????????????????????????# #??????????? | | ????????????????????????# #??????????? | | ????????????????????????#@#??????????? | | ????????????????????????#a#??????????? | | ????????????????????????# ######?????? | | ????????????????????????#%%%=% #?????? | | ????????????????????????###### #?????? | | ?????????????????????????????# #?????? | | ?????????????????????????????# #?????? | | ???????????????????????????### ###???? | | ???????????????????????????#%= #???? | | ????????????????????????#### = #???? | | ????????????????????????# ] * #???? | | ???????????????????????#"%## #???? | | ???????????????????????## ## #???? | | ????????????????????????# ## #???? | | ????????????????????????# ########???? | | ????????????????????????# #??????????? | | ????????????????????????# #??????????? | | ????????????????????????# #??????????? | | ????????????????????????# #??????????? | | ????????????????????????? ???????????? | | ????????????????????????? ???????????? | | ????????????????????????? ???????????? | | ?????????????????????????#???????????? | | ?????????????????????????????????????? | | ?????????????????????????????????????? | +----------------------------------------------------+ Best States ------------- Heat Dissipation 25 Energy Generation 14 Energy Capacity 275 Matter Stores 300 Matter Capacity 300 Sight Range 16 Terrain Scan Density 10 Evasion (%) 50 Targeting Accuracy 8 Item Schematics ----------------- None Robot Schematics ------------------ None Fabricated ------------ Nothing Alien Tech Used ----------------- None Achievements -------------- None Challenges ------------ None Game ------ Seed SensorWeightSplitter Manual? 0 Play Time 00:20:02 Cumulative 10.3 hours Start 2022.04.25 @ 18:34:29 End 2022.04.25 @ 18:54:06 Sessions 1 Manual Loads 0 Difficulty Rogue Special Mode None Game No. 17 Rogue 17 Adventurer 0 Explorer 0 Win Type - Total 0 Types 0/0/0/0/0/0/0/0/0 Lore% 22 Gallery% 17 Achievement% 21 Wizard Run 0 Options --------- ASCII 0 Keyboard 0 Movement Numpad Keybinds 0 Fullscreen 2 Font 18/SmallcapsGlow Map View 76x50 Tactical HUD 1 Map Filters NONE Filters NONE Steam 1 RUN: 314e7911-4503-4d19-86b6-d251224e844f